bitfinex-derivatives/quotes_BTCF0:USTF0_20251028
["timestamp","ask_amount","ask_price","bid_price","bid_amount"]
[1761658794876,0.04568,115120.0,115110.0,0.1316018]
[1761658795065,0.41933,115120.0,115110.0,0.1316018]
[1761658796073,0.04568,115110.0,115100.0,0.14237907]
[1761658796278,0.05853,115110.0,115100.0,0.14237907]
[1761658796576,0.05853,115110.0,115100.0,0.50317907]
[1761658797184,0.05853,115110.0,115100.0,0.14237907]
[1761658797575,0.05853,115110.0,115100.0,0.50317907]
[1761658798078,0.05853,115110.0,115100.0,0.51217907]
[1761658798583,0.05853,115110.0,115100.0,0.51477907]
[1761658798784,0.05853,115110.0,115100.0,0.51277907]
[1761658799687,0.05853,115110.0,115100.0,0.51017907]
[1761658799987,0.05853,115110.0,115100.0,0.14937907]
[1761658800490,0.05853,115110.0,115100.0,0.10466347]
[1761658800691,0.41933,115110.0,115100.0,0.04002317]
[1761658800880,0.41933,115110.0,115100.0,0.12691347]
[1761658801281,0.05853,115110.0,115100.0,0.06196317]
[1761658801481,0.05853,115110.0,115100.0,0.05119]
[1761658801683,0.41933,115110.0,115100.0,0.05119]
[1761658802684,0.41933,115110.0,115100.0,0.1380803]
[1761658802990,0.42193,115110.0,115100.0,0.007]
[1761658803495,1.04781177,115110.0,115100.0,0.007]
[1761658803887,0.02312,115070.0,115060.0,0.3608]
[1761658804082,0.01283,115060.0,115050.0,0.49625915]
[1761658804278,0.05731,115060.0,115050.0,0.49625915]
[1761658804479,0.05731,115060.0,115050.0,0.62608139]
[1761658804880,0.05731,115060.0,115050.0,0.40933575]
[1761658805184,0.05739271,115060.0,115050.0,0.03714355]
[1761658805379,0.05739271,115060.0,115050.0,0.12407165]
[1761658805580,0.05739271,115060.0,115050.0,0.13052385]
[1761658805781,0.05739271,115060.0,115050.0,0.04359575]
[1761658806093,0.05739271,115060.0,115050.0,0.02134575]
[1761658806094,0.41819271,115060.0,115050.0,0.02134575]
[1761658806399,0.42079271,115060.0,115050.0,0.02134575]
[1761658807391,0.41819271,115060.0,115050.0,0.15527385]
[1761658807992,0.41819271,115060.0,115050.0,0.06834575]
[1761658808188,0.41819271,115060.0,115050.0,0.13236385]
[1761658809195,0.41819271,115060.0,115050.0,0.15527385]
[1761658810702,0.41819271,115060.0,115050.0,0.13827385]
[1761658811000,0.05739271,115060.0,115050.0,0.50107385]
[1761658811200,0.05739271,115060.0,115050.0,0.50367385]
[1761658811394,8.271e-05,115060.0,115050.0,0.85924506]
[1761658811593,0.05798271,115060.0,115050.0,0.85924506]
[1761658811794,0.05798271,115060.0,115050.0,0.85664506]
[1761658811995,0.05798271,115060.0,115050.0,0.85924506]
[1761658812692,0.05798271,115060.0,115050.0,0.85664506]
[1761658812996,0.05798271,115060.0,115050.0,0.14027385]
[1761658813389,0.05798271,115060.0,115050.0,0.03043575]
[1761658813697,0.05798271,115060.0,115050.0,0.00734575]
[1761658813698,0.41878271,115060.0,115050.0,0.00734575]
[1761658814594,0.42138271,115060.0,115050.0,0.00734575]
[1761658814790,0.68709482,115060.0,115050.0,0.00734575]
[1761658814993,0.68709482,115060.0,115050.0,0.00534575]
[1761658815192,0.44472653,115060.0,115050.0,0.00534575]
[1761658815404,0.44472141,115060.0,115050.0,0.00534575]
[1761658815902,0.44732141,115060.0,115050.0,0.00534575]
[1761658816292,0.71303352,115060.0,115050.0,0.00534575]
[1761658816494,0.71303352,115060.0,115050.0,0.00434575]
[1761658816702,0.71403352,115060.0,115050.0,0.00434575]
[1761658816899,0.44832141,115060.0,115050.0,0.00434575]
[1761658818207,0.44572141,115060.0,115050.0,0.00434575]
[1761658818803,0.44572141,115060.0,115050.0,0.05034575]
[1761658819005,0.41978271,115060.0,115050.0,0.05034575]
[1761658819499,0.41978271,115060.0,115050.0,0.13727385]
[1761658819702,0.41978271,115060.0,115050.0,0.40558596]
[1761658819904,0.41978271,115060.0,115050.0,0.13727385]
[1761658820309,0.05898271,115060.0,115050.0,0.50067385]
[1761658820510,0.05898271,115060.0,115050.0,0.49807385]
[1761658820707,0.05898271,115060.0,115050.0,0.13727385]
[1761658821409,0.41978271,115060.0,115050.0,0.13727385]
[1761658821714,0.05898271,115060.0,115050.0,0.13727385]
[1761658822307,0.08518831,115060.0,115050.0,0.13727385]
[1761658823512,0.08518831,115060.0,115050.0,0.11436385]
[1761658823706,0.44598831,115060.0,115050.0,0.11436385]
[1761658824611,0.44598831,115060.0,115050.0,0.02743575]
[1761658824812,0.44598831,115060.0,115050.0,0.05034575]
[1761658826206,0.44598831,115060.0,115050.0,0.02743575]
[1761658827015,0.44598831,115060.0,115050.0,0.05034575]
[1761658827614,0.08518831,115060.0,115050.0,0.13727295]
[1761658827817,0.08518831,115060.0,115050.0,0.40298506]
[1761658828119,0.00108271,115060.0,115050.0,0.76638506]
[1761658828509,0.02363271,115060.0,115050.0,0.76638506]
[1761658829014,0.4460533,115060.0,115050.0,0.05294575]
[1761658829219,0.73515316,115060.0,115050.0,0.00434575]
[1761658829519,0.73515316,115060.0,115050.0,1e-08]
[1761658829520,0.76115137,115060.0,115050.0,1e-08]
[1761658829714,0.76015137,115060.0,115050.0,1e-08]
[1761658830016,0.05744,115040.0,115030.0,0.01026739]
[1761658830215,0.71151445,115040.0,115010.0,0.886788]
[1761658830421,0.05744,115020.0,115010.0,1.0180554]
[1761658830715,0.08394616,115020.0,115010.0,1.15924516]
[1761658831511,0.08394616,115020.0,115010.0,1.42755727]
[1761658832018,0.08394616,115020.0,115010.0,1.42855727]
[1761658832324,0.08394616,115020.0,115010.0,1.16284536]
[1761658832616,0.08394616,115020.0,115010.0,1.16024536]
[1761658832811,0.08394616,115020.0,115010.0,1.16284536]
[1761658833011,0.08394616,115020.0,115010.0,1.16984536]
[1761658833410,0.02338175,115040.0,115030.0,0.0869423]
[1761658833614,0.12569789,115050.0,115040.0,0.1312449]
[1761658833812,0.07214222,115050.0,115040.0,0.76035701]
[1761658834007,0.04873615,115050.0,115040.0,0.4946449]
[1761658834203,0.07111615,115050.0,115040.0,0.4920449]
[1761658834617,0.07116256,115050.0,115040.0,0.4920449]
[1761658834916,0.07116256,115050.0,115040.0,0.4946449]
[1761658835318,0.04878256,115050.0,115040.0,0.4946449]
[1761658835620,0.07116256,115050.0,115040.0,0.4946449]
[1761658835920,4.641e-05,115050.0,115040.0,0.4946449]
[1761658836317,0.04467641,115050.0,115040.0,0.4920449]
[1761658836513,0.07008404,115050.0,115040.0,0.4930449]
[1761658836716,0.07008404,115050.0,115040.0,0.4956449]
[1761658836910,0.07008404,115050.0,115040.0,0.4930449]
[1761658837811,0.07008404,115050.0,115040.0,0.4956449]
[1761658838012,0.07008404,115050.0,115040.0,0.76135701]
[1761658838619,0.07008404,115050.0,115040.0,0.75875701]
[1761658838814,0.07008404,115050.0,115040.0,0.76135701]
[1761658839014,0.07008404,115050.0,115040.0,0.4930449]
[1761658839218,0.07008404,115050.0,115040.0,0.75875701]
[1761658839421,0.07008404,115050.0,115040.0,0.76135701]
[1761658840121,0.02545404,115050.0,115040.0,0.76135701]
[1761658840419,4.641e-05,115050.0,115040.0,0.76135701]
[1761658841623,0.08086607,115080.0,115070.0,0.1312221]
[1761658841916,0.08086607,115080.0,115070.0,0.04431]
[1761658841917,0.46706834,115080.0,115070.0,0.04431]
[1761658842125,0.04463,115070.0,115060.0,0.4920249]
[1761658842313,0.07003227,115070.0,115060.0,0.4920249]
[1761658843118,0.07003227,115070.0,115060.0,0.4920297]
[1761658843311,0.07003227,115070.0,115050.0,0.4477239]
[1761658843515,0.05744,115060.0,115050.0,0.4920339]
[1761658843721,0.08280487,115060.0,115050.0,0.4920339]
[1761658845422,0.05744,115060.0,115050.0,0.4920339]
[1761658845622,0.0828033,115060.0,115050.0,0.4920373]
[1761658846022,0.0828033,115060.0,115050.0,0.4950373]
[1761658849122,0.3608,115070.0,115060.0,0.1312297]
[1761658849325,0.4084161,115070.0,115060.0,0.1338297]
[1761658849626,0.4307961,115070.0,115060.0,0.1312297]
[1761658849923,0.02225,115060.0,115050.0,0.4729522]
[1761658850227,0.41824,115060.0,115050.0,0.04731]
[1761658850816,0.7219188,115060.0,115050.0,0.003]
[1761658851024,0.05744,115020.0,115010.0,0.05911641]
[1761658851226,0.05744,115020.0,115010.0,0.50687411]
[1761658852228,0.05744,115020.0,115010.0,0.14607411]
[1761658852728,0.05744,115020.0,115010.0,0.50987411]
[1761658854427,0.04463,115030.0,115020.0,0.1312599]
[1761658854630,0.41824,115040.0,115030.0,0.04431]
[1761658854826,0.05744,115060.0,115050.0,0.04431]
[1761658855021,0.05744,115060.0,115050.0,0.4920372]
[1761658855221,0.05744,115060.0,115050.0,0.40511]
[1761658855521,0.05744,115060.0,115050.0,0.4920372]
[1761658857320,0.05263,115060.0,115050.0,0.4920372]
[1761658857725,0.008,115060.0,115050.0,0.76034931]
[1761658858235,0.40543,115090.0,115080.0,0.04431]
[1761658858827,0.40543,115090.0,115080.0,0.1312144]
[1761658859628,0.3758,115090.0,115080.0,0.40718521]
[1761658859830,0.42219,115090.0,115080.0,0.1414731]
[1761658860142,0.40979,115090.0,115080.0,0.04431]
[1761658860327,0.06007,115080.0,115070.0,0.04372]
[1761658860533,0.04639,115070.0,115060.0,0.50180933]
[1761658860839,0.04639,115070.0,115060.0,0.14101663]
[1761658861536,0.04639,115070.0,115060.0,0.04372]
[1761658861727,0.06007,115060.0,115050.0,0.4914438]
[1761658862335,0.06007,115060.0,115050.0,0.50155972]
[1761658863134,0.42087,115080.0,115070.0,0.04372]
[1761658863334,0.40719,115090.0,115080.0,0.1306248]
[1761658863732,0.38408,115090.0,115080.0,0.39633691]
[1761658864133,0.3608,115090.0,115080.0,0.39633691]
[1761658864541,0.42,115100.0,115090.0,0.04372]
[1761658865141,1.02,115100.0,115090.0,0.04372]
[1761658865533,1.02,115100.0,115090.0,0.03872]
[1761658866143,1.02,115100.0,115090.0,0.03972]
[1761658866644,1.02,115100.0,115090.0,0.001]
[1761658867631,0.42,115100.0,115090.0,0.1325372]
[1761658868246,0.42,115100.0,115090.0,0.04564]
[1761658869247,0.42,115100.0,115090.0,0.001]
[1761658869837,0.68571211,115100.0,115090.0,0.001]
[1761658870031,0.68831211,115100.0,115090.0,0.001]
[1761658873135,0.4226,115100.0,115090.0,0.001]
[1761658873332,0.68831211,115100.0,115090.0,0.001]
[1761658875147,0.05777,115080.0,115070.0,0.1319577]
[1761658875343,0.05777,115080.0,115070.0,0.4927577]
[1761658875540,0.04412,115090.0,115080.0,0.131951]
[1761658875735,0.41773,115100.0,115090.0,0.04505]
[1761658875940,0.41773,115100.0,115090.0,0.1345474]
[1761658876141,0.05693,115100.0,115090.0,0.4927474]
[1761658876434,0.40492,115110.0,115100.0,0.1319398]
[1761658877041,0.3608,115110.0,115100.0,0.49050395]
[1761658877249,0.42223,115120.0,115110.0,0.04505]
[1761658878044,0.42223,115120.0,115110.0,0.1319323]
[1761658878248,0.42223,115120.0,115110.0,0.1345323]
[1761658878746,0.06143,115120.0,115110.0,0.1345323]
[1761658878938,0.0045,115120.0,115110.0,0.1345323]
[1761658879139,0.0045,115120.0,115110.0,0.85129645]
[1761658879935,0.0045,115120.0,115110.0,0.4953323]
[1761658880445,0.0045,115120.0,115110.0,0.85129645]
[1761658882445,0.0045,115120.0,115110.0,0.4953323]
[1761658882649,0.0045,115120.0,115110.0,1.45129645]
[1761658883242,0.0045,115120.0,115110.0,1.0953323]
[1761658883444,0.0045,115120.0,115110.0,1.45129645]
[1761658883941,0.02691,115120.0,115110.0,1.0953323]
[1761658884144,0.0045,115120.0,115110.0,1.0953323]
[1761658884341,0.0045,115120.0,115110.0,1.45129645]
[1761658884544,0.0045,115120.0,115110.0,0.85129645]
[1761658886441,0.06227,115120.0,115110.0,0.4927323]
[1761658886843,0.06227,115120.0,115110.0,0.84869645]
[1761658887148,0.02691,115120.0,115110.0,0.84869645]
[1761658887344,0.0045,115120.0,115110.0,0.85129645]
[1761658890153,0.42272,115120.0,115110.0,0.02305]
[1761658890360,0.04564,115110.0,115100.0,0.12773]
[1761658890556,0.04564,115110.0,115100.0,0.1101798]
[1761658890856,0.05833,115100.0,115090.0,0.04473]
[1761658891049,0.05833,115100.0,115090.0,0.1316273]
[1761658891246,0.05833,115100.0,115090.0,0.4924273]
[1761658892851,0.05833,115100.0,115090.0,0.4964273]
[1761658893958,0.05833,115100.0,115090.0,0.4990273]
[1761658894160,0.40644,115110.0,115100.0,0.1316199]
[1761658894363,0.43357168,115110.0,115100.0,0.1342199]
[1761658894563,0.43357168,115110.0,115100.0,0.1316199]
[1761658894962,0.43357168,115110.0,115100.0,0.04473]
[1761658895165,0.43357168,115110.0,115100.0,0.1316199]
[1761658895363,0.43357168,115110.0,115100.0,0.1336199]
[1761658895662,0.43357359,115110.0,115100.0,0.1336199]
[1761658896561,0.43357359,115110.0,115100.0,0.04673]
[1761658896862,0.43617359,115110.0,115100.0,0.04673]
[1761658897060,0.43617359,115110.0,115100.0,0.002]
[1761658897464,0.43617359,115110.0,115100.0,0.02529]
[1761658897959,0.43617359,115110.0,115100.0,0.002]
[1761658901060,1.41548336,115110.0,115100.0,0.002]
[1761658901260,1.05951921,115110.0,115100.0,0.002]
[1761658901461,0.81548336,115110.0,115100.0,0.002]
[1761658901766,0.04564,115090.0,115080.0,0.1316338]
[1761658902261,0.04564,115090.0,115080.0,0.4924338]
[1761658902661,0.04564,115090.0,115080.0,0.85099795]
[1761658902967,0.02332,115090.0,115080.0,0.85877795]
[1761658903165,0.02332,115090.0,115080.0,0.5098138]
[1761658903959,0.04564,115090.0,115080.0,0.5020338]
[1761658904968,0.04564,115090.0,115080.0,0.4994338]
[1761658906263,0.04564,115090.0,115080.0,0.41253]
[1761658906456,0.04564,115090.0,115080.0,0.4994349]
[1761658907359,0.02332,115090.0,115080.0,0.5098149]
[1761658907562,0.04564,115090.0,115080.0,0.5098149]
[1761658907767,0.04564,115090.0,115080.0,0.5020349]
[1761658908667,0.04564,115090.0,115080.0,0.4994349]
[1761658912468,0.04564,115090.0,115080.0,0.5020349]
[1761658912973,0.05833,115090.0,115080.0,0.5020349]
[1761658913271,0.05833,115090.0,115080.0,0.4994349]
[1761658913971,0.06283,115120.0,115110.0,0.04473]
[1761658914273,0.06283,115120.0,115110.0,0.1316126]
[1761658915567,0.06383,115120.0,115110.0,0.1316126]
[1761658916170,0.06383,115120.0,115110.0,0.4924126]
[1761658916570,0.06383,115120.0,115110.0,0.85097675]
[1761658916571,0.0055,115120.0,115110.0,0.85097675]
[1761658916971,0.05114,115120.0,115110.0,0.4924126]
[1761658917172,0.41194,115120.0,115110.0,0.1316126]
[1761658917372,0.05114,115120.0,115110.0,0.1316126]
[1761658917571,0.05114,115120.0,115110.0,0.4924126]
[1761658918481,0.05114,115120.0,115110.0,0.1316126]
[1761658919580,0.05114,115120.0,115110.0,0.4924126]
[1761658922078,0.05114,115120.0,115110.0,0.1316126]
[1761658922477,0.41194,115120.0,115110.0,0.1316127]
[1761658922670,0.05804,115100.0,115090.0,0.492853]
[1761658922869,0.05804,115100.0,115090.0,0.132053]
[1761658923278,0.05804,115100.0,115090.0,0.492853]
[1761658923682,0.05804,115100.0,115090.0,0.132053]
[1761658923873,0.05804,115100.0,115090.0,0.04516]
[1761658924079,0.05804,115100.0,115090.0,0.1320578]
[1761658924381,0.05804,115100.0,115090.0,0.1350578]
[1761658926184,0.06064,115100.0,115090.0,0.04816]
[1761658926380,0.05804,115100.0,115090.0,0.04816]
[1761658926568,0.42144,115100.0,115090.0,0.003]
[1761658926774,0.41884,115100.0,115090.0,0.0898977]
[1761658926969,0.42144,115100.0,115090.0,0.003]
[1761658927175,0.77740415,115100.0,115090.0,0.003]
[1761658927377,0.42144,115100.0,115090.0,0.003]
[1761658931688,0.44894479,115100.0,115090.0,0.003]
[1761658932589,0.80490894,115100.0,115090.0,0.003]
[1761658933385,0.05881,115070.0,115060.0,0.4931538]
[1761658934580,0.05881,115070.0,115060.0,0.5021538]
[1761658935286,0.41961,115090.0,115080.0,0.04544]
[1761658936590,0.05881,115080.0,115070.0,0.04544]
[1761658936790,0.05881,115080.0,115070.0,0.1323531]
[1761658937880,0.05881,115080.0,115060.0,0.4931558]
[1761658937881,0.05881,115070.0,115060.0,0.4931558]
[1761658938485,0.05881,115070.0,115060.0,0.1323558]
[1761658938790,0.05881,115060.0,115050.0,0.50337461]
[1761658939088,0.05881,115060.0,115050.0,0.633744]
[1761658939286,0.05881,115060.0,115050.0,0.5468181]
[1761658939675,0.05881,115060.0,115050.0,0.6337462]
[1761658940785,0.05881,115060.0,115050.0,0.1638381]
[1761658940976,0.05881,115060.0,115050.0,0.03226]
[1761658941789,0.05881,115060.0,115050.0,0.05544]
[1761658942678,0.05881,115060.0,115050.0,0.5031678]
[1761658942883,0.05881,115060.0,115050.0,0.76875952]
[1761658943082,0.04582,115060.0,115050.0,0.76875952]
[1761658943384,0.04582,115060.0,115050.0,0.5031628]
[1761658943690,0.04582,115060.0,115050.0,0.5031681]
[1761658943884,0.04582,115060.0,115050.0,0.5127943]
[1761658944086,0.04582,115060.0,115050.0,0.4258662]
[1761658944387,0.67481172,115060.0,115050.0,0.01]
[1761658945590,0.67221172,115060.0,115050.0,0.01]
[1761658946884,0.67481172,115060.0,115050.0,0.01]
[1761658947087,0.67221172,115060.0,115050.0,0.01]
[1761658947286,0.67221172,115060.0,115050.0,0.1191874]
[1761658947491,0.40662,115060.0,115050.0,0.1423674]
[1761658947890,0.41961,115060.0,115050.0,0.1423674]
[1761658948592,0.41961,115060.0,115050.0,0.40795912]
[1761658948891,0.05881,115060.0,115050.0,0.5031674]
[1761658954792,0.41869,115070.0,115060.0,0.1297299]
[1761658956092,0.40197881,115070.0,115050.0,0.4567274]
[1761658956294,0.05778,115060.0,115050.0,0.4995374]
[1761658956590,0.05778,115060.0,115050.0,0.4905374]
[1761658957300,0.05778,115060.0,115050.0,0.4975374]
[1761658957891,0.39626,115070.0,115060.0,0.1297298]
[1761658958100,0.4468914,115070.0,115060.0,0.1297298]
[1761658958596,0.02334562,115090.0,115080.0,0.1374947]
[1761658958803,0.08112562,115100.0,115090.0,0.1297072]
[1761658959107,0.05778,115100.0,115090.0,0.1323072]
[1761658959302,0.08598066,115100.0,115090.0,0.1297072]
[1761658959995,0.0449,115100.0,115090.0,0.1297072]
[1761658960196,0.02247,115100.0,115090.0,0.39529892]
[1761658960491,0.0449,115100.0,115090.0,0.39629892]
[1761658960899,0.41858,115110.0,115100.0,0.1296997]
[1761658961102,0.44664876,115110.0,115100.0,0.1296997]
[1761658962008,0.42308,115120.0,115110.0,0.1296921]
[1761658962204,0.0045,115120.0,115110.0,0.39788382]
[1761658962508,0.0045,115120.0,115110.0,0.39528382]
[1761658963300,0.02697,115120.0,115110.0,0.40499342]
[1761658963500,0.0494,115120.0,115110.0,0.40499342]
[1761658964005,0.06228,115120.0,115110.0,0.40799342]
[1761658965901,0.06228,115120.0,115110.0,0.1424017]
[1761658966208,0.42308,115120.0,115110.0,0.0555196]
[1761658966509,0.42308,115120.0,115110.0,0.142402]
[1761658966807,0.42568,115120.0,115110.0,0.0337296]
[1761658967001,0.42568,115120.0,115110.0,0.02402]
[1761658968110,0.42308,115120.0,115110.0,0.1326925]
[1761658968604,0.06228,115120.0,115110.0,0.14230965]
[1761658969911,0.42568,115120.0,115110.0,0.003]
[1761658970208,0.42568,115120.0,115110.0,0.02402]
[1761658970408,0.42308,115120.0,115110.0,0.132692]
[1761658971003,0.06228,115120.0,115110.0,0.14231241]
[1761658971710,0.06228,115120.0,115110.0,0.41050413]
[1761658972208,0.0494,115120.0,115110.0,0.41050413]
[1761658972614,0.0045,115120.0,115110.0,0.41050413]
[1761658973103,0.02697,115120.0,115110.0,0.41050413]
[1761658973711,0.0045,115120.0,115110.0,0.41050413]
[1761658973911,0.0045,115120.0,115110.0,0.14491241]
[1761658974112,0.0045,115120.0,115110.0,0.41050413]
[1761658975010,0.0045,115120.0,115110.0,0.77130413]
[1761658975322,0.0045,115120.0,115110.0,0.90116685]
[1761658976011,0.0045,115120.0,115110.0,1.50116685]
[1761658976310,0.41858,115140.0,115130.0,0.02102]
[1761658976505,0.41858,115140.0,115130.0,0.1296776]
[1761658977613,0.42058,115140.0,115130.0,0.1296776]
[1761658979415,0.4485748,115140.0,115130.0,0.1296776]
[1761658980418,0.42058,115140.0,115130.0,0.1296776]
[1761658980913,0.44857947,115140.0,115130.0,0.1296776]
[1761658982613,0.44657947,115140.0,115130.0,0.1296776]
[1761658982820,0.02175,115130.0,115120.0,0.0868747]
[1761658983008,0.05806,115130.0,115120.0,0.1324547]
[1761658983613,0.68445172,115130.0,115120.0,0.0868747]
[1761658984019,0.68705172,115130.0,115120.0,0.0868747]
[1761658984315,0.44949645,115130.0,115120.0,0.1324547]
[1761658985117,0.08609645,115130.0,115120.0,0.1324547]
[1761658985819,0.08609645,115130.0,115120.0,0.04758]
[1761658986021,0.08609645,115130.0,115120.0,0.1344551]
[1761658986221,0.44689645,115130.0,115120.0,0.04558]
[1761658986425,0.05806,115120.0,115110.0,0.09650311]
[1761658986722,0.44689645,115120.0,115110.0,0.05520041]
[1761658986907,0.44689645,115120.0,115110.0,0.14208311]
[1761658987818,0.07286645,115120.0,115110.0,0.40767483]
[1761658988027,0.02803645,115120.0,115110.0,0.77107483]
[1761658988214,0.41874,115130.0,115120.0,0.1300549]
[1761658988522,0.47021092,115130.0,115120.0,0.1300549]
[1761658988720,0.10941092,115130.0,115120.0,0.40602662]
[1761658988919,0.0860653,115130.0,115120.0,0.40602662]
[1761658989108,0.0497753,115130.0,115120.0,0.76682662]
[1761658989315,0.0281253,115130.0,115120.0,0.8964118]
[1761658989516,0.44208562,115150.0,115140.0,0.1300398]
[1761658989720,0.47021403,115150.0,115140.0,0.1300398]
[1761658991317,0.10941403,115150.0,115140.0,0.39563152]
[1761658991717,0.08606841,115150.0,115140.0,0.39563152]
[1761658991924,0.02812841,115150.0,115140.0,0.75903152]
[1761658992223,0.42339,115160.0,115150.0,0.1300323]
[1761658992530,0.45062294,115160.0,115150.0,0.1300323]
[1761658993121,0.04471,115150.0,115140.0,0.1300387]
[1761658993326,0.07194294,115150.0,115140.0,0.1300387]
[1761658994510,0.07194294,115150.0,115120.0,0.4554517]
[1761658994511,0.03644,115140.0,115120.0,0.086873]
[1761658994718,0.04471,115130.0,115120.0,0.490853]
[1761658995021,0.07165175,115130.0,115120.0,0.490853]
[1761658995225,0.07165175,115130.0,115120.0,0.04318]
[1761658995425,0.05809,115120.0,115110.0,0.41360041]
[1761658995624,0.08503175,115120.0,115110.0,0.05280041]
[1761658995923,0.08503175,115120.0,115110.0,0.1300636]
[1761658996928,0.08503175,115120.0,115110.0,0.1340636]
[1761658998928,0.08503175,115120.0,115110.0,0.1320636]
[1761658999415,0.08503175,115120.0,115110.0,0.1300636]
[1761658999721,0.08503175,115120.0,115110.0,0.1320636]
[1761658999920,0.08503175,115120.0,115110.0,0.4928636]
[1761659000523,0.08503175,115120.0,115110.0,0.85128711]
[1761659000823,0.07165175,115120.0,115110.0,0.4954636]
[1761659001222,0.08503175,115120.0,115110.0,0.4954636]
[1761659001428,0.08503175,115120.0,115110.0,0.85128711]
[1761659003723,0.08503175,115120.0,115110.0,0.4954636]
[1761659004225,0.05809,115120.0,115110.0,0.4954636]
[1761659004425,0.05809,115120.0,115110.0,0.4928636]
[1761659004633,0.05809,115120.0,115110.0,0.4954636]
[1761659004832,0.05809,115120.0,115110.0,0.85128711]
[1761659005223,0.05809,115120.0,115110.0,0.4954636]
[1761659005830,0.05809,115120.0,115110.0,0.85128711]
[1761659006421,0.04471,115120.0,115110.0,0.85128711]
[1761659007527,0.02165,115120.0,115110.0,0.85128711]
[1761659007733,0.04471,115120.0,115110.0,0.85128711]
[1761659008033,0.05809,115120.0,115110.0,0.4954636]
[1761659008230,0.05809,115120.0,115110.0,0.85128711]
[1761659008426,0.02109,115130.0,115120.0,0.1312561]
[1761659008636,0.05726,115140.0,115130.0,0.1312486]
[1761659008839,0.0841415,115140.0,115130.0,0.48967211]
[1761659009024,0.0841415,115140.0,115130.0,0.48707211]
[1761659009227,0.0707615,115140.0,115130.0,0.49616211]
[1761659009533,0.04388,115140.0,115130.0,0.85696211]
[1761659009730,0.04588,115140.0,115130.0,0.85696211]
[1761659009923,0.002,115140.0,115130.0,0.85956211]
[1761659010721,0.0587,115140.0,115130.0,0.48967211]
[1761659010926,0.0587,115140.0,115130.0,0.1312486]
[1761659011835,0.0567,115140.0,115130.0,0.1312486]
[1761659015332,0.0567,115140.0,115130.0,0.48707211]
[1761659015533,0.0567,115140.0,115130.0,0.1312486]
[1761659019641,0.0567,115140.0,115130.0,0.48707211]
[1761659020830,0.04388,115140.0,115130.0,0.48707211]
[1761659021031,0.41806,115150.0,115140.0,0.1312408]
[1761659021239,0.41806,115150.0,115140.0,0.48706431]
[1761659021431,0.05726,115150.0,115140.0,0.48706431]
[1761659021626,0.37812,115160.0,115150.0,0.02274]
[1761659021939,0.0612,115160.0,115150.0,0.48705681]
[1761659022237,0.0612,115160.0,115150.0,0.1312333]
[1761659023139,0.0652,115160.0,115150.0,0.1312333]
[1761659023541,0.0678,115160.0,115150.0,0.1312333]
[1761659026236,0.0678,115160.0,115150.0,0.04438]
[1761659026436,0.4286,115160.0,115150.0,0.1095933]
[1761659026627,0.0678,115160.0,115150.0,0.1312333]
[1761659027537,0.4286,115160.0,115150.0,0.04438]
[1761659027736,0.4286,115160.0,115150.0,0.1312333]
[1761659028544,0.426,115160.0,115150.0,0.1312333]
[1761659029339,0.4286,115160.0,115150.0,0.1312333]
[1761659029640,0.4286,115160.0,115150.0,0.0868533]
[1761659030041,0.0567,115150.0,115140.0,0.1312341]
[1761659030247,0.4175,115150.0,115140.0,0.1312341]
[1761659030644,0.0567,115150.0,115140.0,0.1312341]
[1761659031249,0.0587,115150.0,115140.0,0.1312341]
[1761659035150,0.4195,115150.0,115140.0,0.1312408]
[1761659037567,0.0587,115150.0,115140.0,0.1312408]
[1761659038872,0.4195,115150.0,115140.0,0.1312408]
[1761659039964,0.05798,115120.0,115110.0,0.1310809]
[1761659040168,0.05798,115120.0,115110.0,0.1093909]
[1761659040362,0.05798,115120.0,115110.0,0.1310809]
[1761659040565,0.05798,115120.0,115110.0,0.1310835]
[1761659041471,0.05798,115120.0,115110.0,0.1350835]
[1761659043877,0.05798,115130.0,115120.0,0.131076]
[1761659044077,0.05798,115130.0,115120.0,0.30091309]
[1761659044580,0.02186,115130.0,115120.0,0.67209309]
[1761659045078,0.02186,115130.0,115120.0,0.67409309]
[1761659045277,0.05798,115140.0,115130.0,0.1310684]
[1761659045580,0.04515,115140.0,115130.0,0.31277549]
[1761659045780,0.04515,115140.0,115130.0,0.1455384]
[1761659045970,0.02186,115140.0,115130.0,0.86201582]
[1761659046170,0.05797,115150.0,115140.0,0.1310608]
[1761659046378,0.04515,115150.0,115140.0,0.49842822]
[1761659046679,0.04515,115150.0,115140.0,0.1401508]
[1761659046878,0.04515,115150.0,115140.0,0.1310608]
[1761659047075,0.05798,115150.0,115140.0,0.1310608]
[1761659047878,0.05998,115150.0,115140.0,0.1310608]
[1761659048468,0.05798,115150.0,115140.0,0.1330608]
[1761659050067,0.05798,115150.0,115140.0,0.1330609]
[1761659058785,0.04955,115160.0,115150.0,0.1306633]
[1761659058981,0.04955,115160.0,115150.0,0.84974072]
[1761659059590,0.04955,115160.0,115150.0,0.84714072]
[1761659059789,0.06325,115160.0,115150.0,0.84714072]
[1761659060288,0.06325,115160.0,115150.0,0.4914633]
[1761659060690,0.06585,115160.0,115150.0,0.38295]
[1761659060989,0.06585,115160.0,115140.0,0.4476578]
[1761659060990,0.05875,115150.0,115140.0,0.1306678]
[1761659063588,0.05875,115150.0,115140.0,0.1326678]
[1761659065191,0.05875,115150.0,115140.0,0.39791999]
[1761659065986,0.05875,115150.0,115140.0,0.1326678]
[1761659067683,0.05875,115150.0,115140.0,0.30242581]
[1761659068993,0.58930801,115150.0,115140.0,0.002]
[1761659069496,0.61905581,115150.0,115140.0,0.002]
[1761659070192,0.0591,115140.0,115130.0,0.1312684]
[1761659070381,0.22885801,115140.0,115130.0,0.30102641]
[1761659070585,0.23145801,115140.0,115130.0,0.30102641]
[1761659070987,0.22885801,115140.0,115130.0,0.30102641]
[1761659071192,0.0591,115140.0,115130.0,0.30102641]
[1761659071494,0.0591,115140.0,115130.0,0.30302641]
[1761659071789,0.02246,115140.0,115130.0,0.84267442]
[1761659071981,0.06342,115160.0,115150.0,0.0444]
[1761659072186,0.04972,115160.0,115150.0,0.30101131]
[1761659073085,0.0636,115160.0,115150.0,0.30101131]
[1761659073488,0.0656,115160.0,115150.0,0.30101131]
[1761659073693,0.0656,115160.0,115150.0,0.39643335]
[1761659074396,0.0636,115160.0,115150.0,0.39643335]
[1761659074596,0.0636,115160.0,115150.0,0.39843335]
[1761659076395,0.0045,115160.0,115150.0,0.41030335]